fUSD/lending_fUSD_20260620
["ID","MTS","AMOUNT","RATE_DAILY","PERIOD"]
[425793332,1781896245000,-1299.84,0.00028763,7]
[425793329,1781896245000,-192.94070007,0.00023,2]
[425793333,1781896245000,-209300.53109634,0.0003013,7]
[425793349,1781896246000,-194.97869125,0.00021146,3]
[425793351,1781896246000,-172.48934562,0.00021568,3]
[425793347,1781896246000,-150.0,0.00018,2]
[425793355,1781896246000,-287.41196313,0.00025633,2]
[425793353,1781896246000,-500.0,0.000226,7]
[425793359,1781896246000,-1341.36917297,0.00025633,2]
[425793382,1781896248000,-69.23639155,0.00029435,2]
[425793362,1781896248000,-200.0,0.00025248,2]
[425793363,1781896248000,-803.6316372,0.00025633,2]
[425793361,1781896248000,-184.46,0.00024491,2]
[425793364,1781896248000,-200.0,0.00026006,2]
[425793365,1781896248000,-200.0,0.00026763,2]
[425793366,1781896248000,-501.0,0.00027137,2]
[425793368,1781896248000,-200.0,0.00028278,2]
[425793371,1781896248000,-405.05,0.0002863,2]
[425793369,1781896248000,-501.0,0.00028426,3]
[425793375,1781896248000,-886.92,0.00028909,2]
[425793374,1781896248000,-886.92,0.00028734,7]
[425793372,1781896248000,-405.05,0.00028661,7]
[425793370,1781896248000,-886.92,0.00028559,30]
[425793377,1781896248000,-200.0,0.00029035,2]
[425793367,1781896248000,-200.0,0.00027521,2]
[425793373,1781896248000,-405.05,0.00028693,30]
[425793379,1781896248000,-1299.84,0.00029106,30]
[425793378,1781896248000,-886.92,0.00029084,30]
[425793381,1781896248000,-1299.84,0.00029278,7]
[425793380,1781896248000,-886.92,0.0002926,7]
[425793376,1781896248000,-1299.84,0.00028935,2]
[425793383,1781896261000,3100.91,0.00030137,120]
[425793391,1781896608000,-151.0,0.00017191,2]
[425793392,1781896771000,-152.0,0.00017191,2]
[425793395,1781897099000,-151.0,0.00017191,2]
[425793422,1781897431000,-150.0,0.00017191,2]
[425793399,1781897431000,-150.0,0.0001719,2]
[425793401,1781897431000,-151.0,0.0001719,2]
[425793400,1781897431000,-150.0,0.0001719,2]
[425793404,1781897431000,-68.2538549,0.0001719,2]
[425793402,1781897431000,-152.0,0.0001719,2]
[425793403,1781897431000,-151.0,0.0001719,2]
[425793408,1781897431000,-150.0,0.0001719,2]
[425793405,1781897431000,-81.7461451,0.0001719,2]
[425793406,1781897431000,-151.0,0.0001719,2]
[425793407,1781897431000,-151.0,0.0001719,2]
[425793409,1781897431000,-152.0,0.0001719,2]
[425793411,1781897431000,-153.0,0.0001719,2]
[425793410,1781897431000,-153.0,0.0001719,2]
[425793412,1781897431000,-87.80114531,0.0001719,2]
[425793413,1781897431000,-63.19885469,0.0001719,2]
[425793414,1781897431000,-314.88077024,0.0001719,2]
[425793415,1781897431000,-320.38207787,0.0001719,2]
[425793418,1781897431000,-48.07572163,0.00017191,2]
[425793417,1781897431000,-150.0,0.00017191,2]
[425793416,1781897431000,-152.0,0.00017191,2]
[425793419,1781897431000,-102.92427837,0.00017191,2]
[425793420,1781897431000,-150.0,0.00017191,2]
[425793423,1781897431000,-52.64070196,0.00017191,2]
[425793421,1781897431000,-152.0,0.00017191,2]
[425793428,1781897437000,-0.7829088,0.00017191,2]
[425793425,1781897437000,-98.35929804,0.00017191,2]
[425793427,1781897437000,-150.0,0.00017191,2]
[425793426,1781897437000,-151.0,0.00017191,2]
[425793470,1781897445000,-151.0,0.00017191,2]
[425793466,1781897445000,-150.0,0.00017191,2]
[425793468,1781897445000,-105.2170912,0.00017191,2]
[425793469,1781897445000,-151.0,0.00017191,2]
[425793467,1781897445000,-47.7829088,0.00017191,2]
[425793465,1781897445000,-152.0,0.00017191,2]
[425793464,1781897445000,-151.0,0.00017191,2]
[425793463,1781897445000,-151.0,0.00017191,2]
[425793462,1781897445000,-150.2170912,0.00017191,2]
[425793482,1781897446000,-151.0,0.00017191,2]
[425793476,1781897446000,-150.0,0.00017191,2]
[425793477,1781897446000,-151.0,0.00017191,2]
[425793478,1781897446000,-151.0,0.00017191,2]
[425793475,1781897446000,-150.0,0.00017191,2]
[425793473,1781897446000,-151.0,0.00017191,2]
[425793479,1781897446000,-152.0,0.00017191,2]
[425793480,1781897446000,-151.0,0.00017191,2]
[425793474,1781897446000,-150.0,0.00017191,2]
[425793483,1781897446000,-151.0,0.00017191,2]
[425793472,1781897446000,-150.0,0.00017191,2]
[425793471,1781897446000,-153.0,0.00017191,2]
[425793481,1781897446000,-151.0,0.00017191,2]
[425793485,1781897446000,-153.0,0.00017191,2]
[425793484,1781897446000,-151.0,0.00017191,2]
[425793489,1781897446000,-151.0,0.00017191,2]
[425793488,1781897446000,-150.0,0.00017191,2]
[425793486,1781897446000,-151.0,0.00017191,2]
[425793491,1781897446000,-151.0,0.00017191,2]
[425793490,1781897446000,-151.0,0.00017191,2]
[425793492,1781897446000,-151.0,0.00017191,2]
[425793493,1781897446000,-151.0,0.00017191,2]
[425793495,1781897446000,-151.0,0.00017191,2]
[425793494,1781897446000,-151.0,0.00017191,2]
[425793497,1781897446000,-150.0,0.00017191,2]
[425793496,1781897446000,-151.0,0.00017191,2]
[425793498,1781897446000,-151.0,0.00017191,2]
[425793500,1781897446000,-160.0,0.00017198,2]
[425793499,1781897446000,-151.0,0.00017191,2]
[425793501,1781897446000,-354.16036067,0.00018909,2]
[425793487,1781897446000,-152.0,0.00017191,2]
[425793506,1781897678000,-151.78,0.00017191,2]
[425793507,1781897681000,1215.31,0.00030136,120]
[425793509,1781897714000,12732.97488248,0.000148,2]
[425793508,1781897714000,17267.02511752,0.000148,2]
[425793510,1781897715000,30000.0,0.000148,2]
[425793512,1781897716000,30000.0,0.000148,2]
[425793511,1781897716000,30000.0,0.000148,2]
[425793513,1781897717000,30000.0,0.000148,2]
[425793515,1781897718000,30000.0,0.000145,2]
[425793514,1781897718000,30000.0,0.000145,2]
[425793516,1781897719000,30000.0,0.000145,2]
[425793519,1781897720000,30000.0,0.000145,2]
[425793518,1781897720000,9034.83607695,0.000145,2]
[425793517,1781897720000,20965.16392305,0.000145,2]
[425793520,1781897721000,30000.0,0.000142,2]
[425793522,1781897722000,30000.0,0.000142,2]
[425793521,1781897722000,30000.0,0.000142,2]
[425793523,1781897723000,30000.0,0.000142,2]
[425793525,1781897724000,30000.0,0.000139,2]
[425793524,1781897724000,30000.0,0.000142,2]
[425793526,1781897725000,30000.0,0.000139,2]
[425793528,1781897726000,30000.0,0.000139,2]
[425793527,1781897726000,30000.0,0.000139,2]
[425793529,1781897727000,30000.0,0.000139,2]
[425793530,1781897728000,35714.0,0.000136,2]
[425793531,1781897785000,-928.35239756,0.00017091,2]
[425793532,1781897799000,-798.54370219,0.00017091,2]
[425793538,1781898371000,367.69470898,0.00021918,30]
[425793541,1781898401000,-22.87306173,0.0001644,2]
[425793539,1781898401000,-151.0,0.0001608,2]
[425793540,1781898401000,-240.0,0.00016341,2]
[425793542,1781898445000,500.0,0.0003013,120]
[425793544,1781898502000,8887398.62703208,0.00030137,120]
[425793549,1781898554000,-150.0,0.00016168,2]
[425793548,1781898554000,-240.91,0.00016161,2]
[425793547,1781898554000,-156.68,0.00016136,2]
[425793565,1781898631000,-352.20737125,0.00016539,2]
[425793574,1781898631000,-150.0,0.00016685,2]
[425793573,1781898631000,-729.75959214,0.0001665,2]
[425793572,1781898631000,-92.49040786,0.0001665,2]
[425793570,1781898631000,-44.36807712,0.0001665,7]
[425793571,1781898631000,-301.02192288,0.0001665,7]
[425793569,1781898631000,-608.57968406,0.00016539,2]
[425793567,1781898631000,-391.88,0.00016539,2]
[425793564,1781898631000,-150.0,0.00016523,2]
[425793566,1781898631000,-8327.44031594,0.00016539,2]
[425793554,1781898631000,-171.23,0.00016175,2]
[425793563,1781898631000,-212.05753486,0.0001644,2]
[425793562,1781898631000,-159.60482714,0.0001644,2]
[425793561,1781898631000,-298.2,0.00016438,2]
[425793560,1781898631000,-189.07949596,0.00016396,2]
[425793559,1781898631000,-150.0,0.00016361,2]
[425793555,1781898631000,-128.77,0.00016175,2]
[425793558,1781898631000,-151.77,0.00016232,2]
[425793557,1781898631000,-150.0,0.00016207,2]
[425793575,1781898631000,-4375.33133862,0.00016685,2]
[425793568,1781898631000,-672.09,0.00016539,2]
[425793577,1781898631000,-1042.89262627,0.0001683,2]
[425793556,1781898631000,-44.22479077,0.00016175,2]
[425793579,1781898631000,-150.0,0.00016847,2]
[425793576,1781898631000,-624.65866138,0.00016685,2]
[425793601,1781898631000,-1117.69894956,0.0001724,2]
[425793599,1781898631000,-70136.15548974,0.0001724,2]
[425793598,1781898631000,-5482.63797303,0.0001724,2]
[425793597,1781898631000,-25.00439187,0.0001724,2]
[425793596,1781898631000,-4945.6924176,0.0001724,2]
[425793591,1781898631000,-2843.78661279,0.00017192,2]
[425793594,1781898631000,-8777.00780157,0.00017196,2]
[425793593,1781898631000,-63889.18440073,0.00017196,2]
[425793590,1781898631000,-317.0,0.00017191,2]
[425793587,1781898631000,-13573.48486715,0.00017162,2]
[425793595,1781898631000,-45064.33196,0.0001724,2]
[425793592,1781898631000,-5129.0719964,0.00017196,2]
[425793589,1781898631000,-152.0,0.00017191,2]
[425793586,1781898631000,-721.94454282,0.00017154,2]
[425793585,1781898631000,-220.41653917,0.00017153,2]
[425793583,1781898631000,-820.01474309,0.0001714,2]
[425793584,1781898631000,-3614.59800487,0.0001714,2]
[425793581,1781898631000,-4581.11334237,0.0001714,2]
[425793580,1781898631000,-431.0667339,0.00017109,2]
[425793578,1781898631000,-809.52737373,0.0001683,2]
[425793588,1781898631000,-151.0,0.00017191,2]
[425793582,1781898631000,-5070.953251,0.0001714,2]
[425793628,1781898637000,-400.01419502,0.0001724,2]
[425793670,1781898638000,-171.23,0.00018871,2]
[425793665,1781898638000,-153.05,0.00018565,2]
[425793667,1781898638000,-156.68,0.00018826,2]
[425793664,1781898638000,-298.2,0.0001841,2]
[425793661,1781898638000,-208.1,0.00018164,2]
[425793663,1781898638000,-1555.5,0.00018336,2]
[425793660,1781898638000,-208.1,0.00018164,2]
[425793658,1781898638000,-208.1,0.00018164,2]
[425793672,1781898638000,-1613.0535,0.00018884,2]
[425793662,1781898638000,-208.1,0.00018164,2]
[425793673,1781898638000,-441.69610347,0.00018909,2]
[425793703,1781898638000,-191.77634561,0.00019873,2]
[425793680,1781898638000,-160.0,0.00018923,2]
[425793676,1781898638000,-152.0,0.00018909,2]
[425793674,1781898638000,-294.46406898,0.00018909,2]
[425793684,1781898638000,-13573.48486708,0.0001903,2]
[425793678,1781898638000,-206.44349011,0.00018909,2]
[425793688,1781898638000,-253.0,0.00019452,2]
[425793686,1781898638000,-1672.7364795,0.00019432,2]
[425793692,1781898638000,-282.0,0.00019452,2]
[425793694,1781898638000,-282.0,0.00019452,2]
[425793659,1781898638000,-208.1,0.00018164,2]
[425793699,1781898638000,-10000.0,0.000198,2]
[425793704,1781898638000,-232.72,0.0001992,2]
[425793682,1781898638000,-14086.67934133,0.00018969,2]
[425793656,1781898638000,-208.1,0.00018164,2]
[425793645,1781898638000,-195.0,0.00017701,2]
[425793652,1781898638000,-150.0,0.00018048,2]
[425793708,1781898638000,-261.54208592,0.00019995,2]
[425793629,1781898638000,-59724.78896408,0.0001724,2]
[425793631,1781898638000,-12544.63888892,0.00017253,2]
[425793630,1781898638000,-116067.7265352,0.0001724,2]
[425793632,1781898638000,-394.25461245,0.00017254,2]
[425793634,1781898638000,-88785.4200921,0.00017255,2]
[425793633,1781898638000,-540.71050534,0.00017254,2]
[425793635,1781898638000,-300.0,0.00017262,7]
[425793636,1781898638000,-1946.51010908,0.00017262,2]
[425793637,1781898638000,-1824.30958,0.00017274,2]
[425793639,1781898638000,-183.51,0.00017362,2]
[425793642,1781898638000,-217.31,0.00017639,2]
[425793657,1781898638000,-208.1,0.00018164,2]
[425793640,1781898638000,-214.83,0.00017362,2]
[425793638,1781898638000,-5059.37,0.00017362,2]
[425793641,1781898638000,-171.23,0.00017523,2]
[425793643,1781898638000,-500.0,0.00017701,2]
[425793646,1781898638000,-250.0,0.00017701,2]
[425793648,1781898638000,-1500.0,0.00017788,2]
[425793647,1781898638000,-500.0,0.00017701,2]
[425793649,1781898638000,-300.0,0.00017793,2]
[425793650,1781898638000,-191.77634561,0.00017873,2]
[425793655,1781898638000,-208.1,0.00018164,2]
[425793651,1781898638000,-441.07632505,0.00017975,2]
[425793653,1781898638000,-200.0,0.00018048,2]
[425793654,1781898638000,-208.1,0.00018164,2]
[425793644,1781898638000,-246.29698099,0.00017701,2]
[425793713,1781898638000,-151.0,0.0002,2]
[425793721,1781898638000,-314.0,0.0002,2]
[425793711,1781898638000,-10000.0,0.0002,2]
[425793755,1781898638000,-253.0,0.00020821,2]
[425793751,1781898638000,-166.66,0.00020637,2]
[425793754,1781898638000,-10000.0,0.000208,2]
[425793756,1781898638000,-13573.48486708,0.00020898,2]
[425793759,1781898638000,-406.0,0.00021,2]
[425793757,1781898638000,-171.201689,0.000209,2]
[425793758,1781898638000,-151.0,0.00021,2]
[425793760,1781898638000,-485.0,0.00021,2]
[425793761,1781898638000,-161.0,0.00021,2]
[425793772,1781898638000,-6498.61,0.0002137,2]
[425793763,1781898638000,-164.0,0.00021,2]
[425793762,1781898638000,-314.0,0.00021,2]
[425793765,1781898638000,-337.0,0.00021,2]
[425793764,1781898638000,-162.0,0.00021,2]
[425793766,1781898638000,-162.0,0.00021,2]
[425793770,1781898638000,-169.53,0.00021074,2]
[425793771,1781898638000,-1865.36488656,0.00021076,2]
[425793767,1781898638000,-339.0,0.00021,2]
[425793769,1781898638000,-166.66,0.00021063,2]
[425793768,1781898638000,-172.99479077,0.00021028,2]
[425793773,1781898638000,-399.0,0.00021408,2]
[425793774,1781898638000,-500.0,0.00021452,2]
[425793776,1781898638000,-500.0,0.00021452,2]
[425793775,1781898638000,-500.0,0.00021452,2]
[425793696,1781898638000,-325.0,0.00019452,2]
[425793753,1781898638000,-14086.67934133,0.00020798,2]
[425793752,1781898638000,-7231.51,0.00020699,2]
[425793777,1781898638000,-195.13115595,0.00021452,2]
[425793750,1781898638000,-1798.80895522,0.00020528,2]
[425793749,1781898638000,-184.07,0.00020523,2]
[425793705,1781898638000,-721.94454282,0.00019942,2]
[425793701,1781898638000,-157.55,0.00019826,2]
[425793715,1781898638000,-406.0,0.0002,2]
[425793717,1781898638000,-485.0,0.0002,2]
[425793719,1781898638000,-158.0,0.0002,2]
[425793723,1781898638000,-156.0,0.0002,2]
[425793727,1781898638000,-337.0,0.0002,2]
[425793729,1781898638000,-154.0,0.0002,2]
[425793731,1781898638000,-339.0,0.0002,2]
[425793725,1781898638000,-162.0,0.0002,2]
[425793733,1781898638000,-151706.88,0.0002,2]
[425793736,1781898638000,-262.160954,0.0002,2]
[425793707,1781898638000,-1734.62772924,0.0001998,2]
[425793738,1781898638000,-262.160954,0.0002,2]
[425793735,1781898638000,-151.0,0.0002,2]
[425793747,1781898638000,-500.0,0.00020466,2]
[425793745,1781898638000,-171.23,0.00020219,2]
[425793746,1781898638000,-298.2,0.00020381,2]
[425793744,1781898638000,-166.66,0.00020212,2]
[425793748,1781898638000,-10000.0,0.000205,2]
[425793741,1781898638000,-1946.51010907,0.00020026,2]
[425793742,1781898638000,-234.0,0.00020136,2]
[425793740,1781898638000,-151.0,0.0002,2]
[425793739,1781898638000,-262.160954,0.0002,2]
[425793737,1781898638000,-262.160954,0.0002,2]
[425793743,1781898638000,-10000.0,0.000202,2]
[425793815,1781898639000,-150.0,0.00021918,2]
[425793814,1781898639000,-150.0,0.00021918,2]
[425793813,1781898639000,-150.0,0.00021918,2]
[425793811,1781898639000,-150.0,0.00021918,2]
[425793808,1781898639000,-150.0,0.00021918,2]
[425793810,1781898639000,-150.0,0.00021918,2]
[425793812,1781898639000,-150.0,0.00021918,2]
[425793809,1781898639000,-150.0,0.00021918,2]
[425793816,1781898639000,-150.0,0.00021918,2]
[425793806,1781898639000,-150.0,0.00021918,2]
[425793807,1781898639000,-150.0,0.00021918,2]
[425793820,1781898639000,-196.15370002,0.00021918,2]
[425793818,1781898639000,-150.0,0.00021918,2]
[425793819,1781898639000,-150.0,0.00021918,2]
[425793822,1781898639000,-500.0,0.00022,3]
[425793824,1781898639000,-151.0,0.00022,2]
[425793821,1781898639000,-500.0,0.00022,3]
[425793823,1781898639000,-500.0,0.00022,3]
[425793828,1781898639000,-162.0,0.00022,2]
[425793825,1781898639000,-406.0,0.00022,2]
[425793827,1781898639000,-314.0,0.00022,2]
[425793826,1781898639000,-485.0,0.00022,2]
[425793830,1781898639000,-339.0,0.00022,2]
[425793804,1781898639000,-150.0,0.00021918,2]
[425793817,1781898639000,-150.0,0.00021918,2]
[425793805,1781898639000,-150.0,0.00021918,2]
[425793791,1781898639000,-150.0,0.00021644,2]
[425793800,1781898639000,-150.0,0.00021918,2]
[425793829,1781898639000,-337.0,0.00022,2]
[425793783,1781898639000,-151.0,0.00021624,2]
[425793780,1781898639000,-218.67099295,0.00021544,2]
[425793779,1781898639000,-156.68,0.00021515,2]
[425793778,1781898639000,-166.66,0.00021488,2]
[425793782,1781898639000,-1934.38338736,0.00021624,2]
[425793781,1781898639000,-171.23,0.00021567,2]
[425793785,1781898639000,-262.160954,0.00021624,2]
[425793784,1781898639000,-262.160954,0.00021624,2]
[425793787,1781898639000,-262.160954,0.00021624,2]
[425793786,1781898639000,-262.160954,0.00021624,2]
[425793803,1781898639000,-150.0,0.00021918,2]
[425793788,1781898639000,-151.0,0.00021624,2]
[425793789,1781898639000,-13076.44,0.00021625,2]
[425793793,1781898639000,-150.0,0.00021644,2]
[425793792,1781898639000,-167.64493964,0.00021644,2]
[425793795,1781898639000,-500.0,0.00021725,2]
[425793794,1781898639000,-187.14232369,0.00021644,2]
[425793797,1781898639000,-5000.0,0.00021918,2]
[425793799,1781898639000,-166.0,0.00021918,2]
[425793796,1781898639000,-166.66,0.00021914,2]
[425793798,1781898639000,-1009.83,0.00021918,2]
[425793801,1781898639000,-150.0,0.00021918,2]
[425793802,1781898639000,-150.0,0.00021918,2]
[425793790,1781898639000,-150.0,0.00021644,2]
[425793840,1781898639000,-364.89603651,0.00022579,7]
[425793858,1781898639000,-151.0,0.0002272,2]
[425793835,1781898639000,-152.0,0.00022228,2]
[425793863,1781898639000,-151.0,0.0002272,2]
[425793866,1781898639000,-151.0,0.0002272,2]
[425793864,1781898639000,-151.0,0.0002272,2]
[425793865,1781898639000,-500.0,0.0002272,2]
[425793862,1781898639000,-151.0,0.0002272,2]
[425793867,1781898639000,-151.0,0.0002272,2]
[425793870,1781898639000,-151.0,0.0002272,2]
[425793871,1781898639000,-151.0,0.0002272,2]
[425793868,1781898639000,-500.0,0.0002272,2]
[425793872,1781898639000,-500.0,0.0002272,2]
[425793873,1781898639000,-151.0,0.0002272,2]
[425793886,1781898639000,-151.0,0.0002272,2]
[425793875,1781898639000,-151.0,0.0002272,2]
[425793878,1781898639000,-151.0,0.0002272,2]
[425793877,1781898639000,-151.0,0.0002272,2]
[425793883,1781898639000,-500.0,0.0002272,2]
[425793881,1781898639000,-151.0,0.0002272,2]
[425793879,1781898639000,-151.0,0.0002272,2]
[425793880,1781898639000,-500.0,0.0002272,2]
[425793882,1781898639000,-151.0,0.0002272,2]
[425793884,1781898639000,-151.0,0.0002272,2]
[425793885,1781898639000,-500.0,0.0002272,2]
[425793887,1781898639000,-151.0,0.0002272,2]
[425793831,1781898639000,-16300.24,0.00022,2]
[425793876,1781898639000,-500.0,0.0002272,2]
[425793857,1781898639000,-2080.17592889,0.0002272,2]
[425793874,1781898639000,-151.0,0.0002272,2]
[425793860,1781898639000,-151.0,0.0002272,2]
[425793855,1781898639000,-151.0,0.0002272,2]
[425793839,1781898639000,-487.98,0.00022466,2]
[425793834,1781898639000,-2005.9555727,0.00022172,2]
[425793837,1781898639000,-298.2,0.00022353,2]
[425793836,1781898639000,-166.66,0.00022339,30]
[425793832,1781898639000,-150.0,0.00022,2]
[425793833,1781898639000,-156.99,0.00022086,7]
[425793838,1781898639000,-250.0,0.00022385,2]
[425793842,1781898639000,-14086.67934133,0.00022627,2]
[425793843,1781898639000,-151.0,0.00022719,2]
[425793851,1781898639000,-200.0,0.0002272,2]
[425793848,1781898639000,-151.0,0.0002272,2]
[425793841,1781898639000,-240.91,0.00022625,2]
[425793859,1781898639000,-151.0,0.0002272,2]
[425793861,1781898639000,-151.0,0.0002272,2]
[425793849,1781898639000,-151.0,0.0002272,2]
[425793856,1781898639000,-151.0,0.0002272,2]
[425793854,1781898639000,-151.0,0.0002272,2]
[425793850,1781898639000,-151.0,0.0002272,2]
[425793853,1781898639000,-151.0,0.0002272,2]
[425793846,1781898639000,-151.0,0.0002272,2]
[425793844,1781898639000,-151.0,0.00022719,2]
[425793845,1781898639000,-151.0,0.00022719,2]
[425793847,1781898639000,-151.0,0.0002272,2]
[425793852,1781898639000,-151.0,0.0002272,2]
[425793925,1781898640000,-406.0,0.00024,2]
[425793924,1781898640000,-154.0,0.00024,2]
[425793922,1781898640000,-2236.95670847,0.00023816,2]
[425793926,1781898640000,-485.0,0.00024,2]
[425793923,1781898640000,-401.0,0.00023953,2]
[425793919,1781898640000,-413.0,0.00023569,2]
[425793921,1781898640000,-200.0,0.00023816,2]
[425793915,1781898640000,-401.0,0.00023305,2]
[425793914,1781898640000,-410.0,0.00023294,2]
[425793927,1781898640000,-314.0,0.00024,2]
[425793920,1781898640000,-151.0,0.00023816,2]
[425793930,1781898640000,-339.0,0.00024,2]
[425793939,1781898640000,-151.0,0.00024116,2]
[425793929,1781898640000,-337.0,0.00024,2]
[425793928,1781898640000,-162.0,0.00024,2]
[425793931,1781898640000,-285.0,0.00024065,2]
[425793934,1781898640000,-88785.4200921,0.00024116,2]
[425793933,1781898640000,-426.98,0.0002411,2]
[425793935,1781898640000,-262.160954,0.00024116,2]
[425793937,1781898640000,-262.160954,0.00024116,2]
[425793943,1781898640000,-151.0,0.00024174,2]
[425793936,1781898640000,-262.160954,0.00024116,2]
[425793938,1781898640000,-262.160954,0.00024116,2]
[425793941,1781898640000,-151.0,0.00024174,2]
[425793918,1781898640000,-200.0,0.0002347,2]
[425793932,1781898640000,-962.96641358,0.00024079,7]
[425793917,1781898640000,-411.0,0.00023408,2]
[425793889,1781898640000,-500.0,0.0002272,2]
[425793916,1781898640000,-404.0,0.00023339,2]
[425793942,1781898640000,-151.0,0.00024174,2]
[425793888,1781898640000,-500.0,0.0002272,2]
[425793890,1781898640000,-500.0,0.0002272,2]
[425793895,1781898640000,-274.226415,0.00022784,14]
[425793891,1781898640000,-500.0,0.0002272,2]
[425793893,1781898640000,-721.94454282,0.00022729,2]
[425793892,1781898640000,-803.3969834,0.00022724,2]
[425793894,1781898640000,-13573.48486708,0.00022766,2]
[425793897,1781898640000,-171.23,0.00022915,2]
[425793896,1781898640000,-1946.51010907,0.00022791,2]
[425793899,1781898640000,-406.0,0.00023,2]
[425793898,1781898640000,-151.0,0.00023,2]
[425793902,1781898640000,-162.0,0.00023,2]
[425793900,1781898640000,-485.0,0.00023,2]
[425793901,1781898640000,-314.0,0.00023,2]
[425793903,1781898640000,-337.0,0.00023,2]
[425793907,1781898640000,-643.71986092,0.00023079,7]
[425793905,1781898640000,-1142.0,0.00023,2]
[425793904,1781898640000,-339.0,0.00023,2]
[425793906,1781898640000,-206.0,0.00023009,2]
[425793908,1781898640000,-150.84406616,0.00023249,2]
[425793909,1781898640000,-200.0,0.00023268,2]
[425793911,1781898640000,-2157.14243826,0.00023268,2]
[425793912,1781898640000,-250.0,0.00023288,2]
[425793913,1781898640000,-150.0,0.00023288,2]
[425793910,1781898640000,-151.0,0.00023268,2]
[425793944,1781898640000,-151.0,0.00024174,2]
[425793940,1781898640000,-1824.30958,0.00024141,2]
[425793946,1781898640000,-1363.82,0.00024174,2]
[425793974,1781898640000,-200.0,0.00024985,2]
[425793975,1781898640000,-406.0,0.00025,2]
[425793980,1781898640000,-350.0485022,0.00025,2]
[425793983,1781898640000,-423.79,0.00025,2]
[425793981,1781898640000,-490.0,0.00025,2]
[425793987,1781898640000,-792.21005374,0.00025165,2]
[425793986,1781898640000,-1302.9192,0.00025079,14]
[425793984,1781898640000,-423.79,0.00025,2]
[425793985,1781898640000,-423.79,0.00025,2]
[425793982,1781898640000,-423.79,0.00025,2]
[425793988,1781898640000,-183.5,0.00025175,7]
[425793989,1781898640000,-214.83,0.00025175,7]
[425793977,1781898640000,-325.0,0.00025,2]
[425793990,1781898640000,-187.9346379,0.00025397,2]
[425793992,1781898640000,-151.0,0.0002546,2]
[425793995,1781898640000,-633.49537878,0.0002548,2]
[425793994,1781898640000,-2494.55939288,0.0002546,2]
[425793993,1781898640000,-200.0,0.0002546,2]
[425794001,1781898640000,-500.0,0.0002558,2]
[425793999,1781898640000,-1946.51010907,0.00025555,2]
[425793997,1781898640000,-721.94454282,0.00025517,2]
[425793998,1781898640000,-152.0,0.00025548,3]
[425794000,1781898640000,-500.0,0.0002558,2]
[425793996,1781898640000,-5528.0,0.000255,3]
[425793945,1781898640000,-6628.5,0.00024174,2]
[425794003,1781898640000,-500.0,0.0002558,2]
[425793991,1781898640000,-318.62525753,0.00025397,2]
[425793973,1781898640000,-2405.55389863,0.00024912,2]
[425794002,1781898640000,-500.0,0.0002558,2]
[425793978,1781898640000,-170.0,0.00025,2]
[425793947,1781898640000,-4269.92,0.00024174,2]